fUST/lending_fUST_20250709
["ID","MTS","AMOUNT","RATE_DAILY","PERIOD"]
[370503620,1752047459502,-636.77850646,0.00020705,2]
[370503621,1752047459512,-719.9266249,0.00020721,2]
[370503622,1752047459521,-4000.0,0.00020722,2]
[370503623,1752047459530,-189.8,0.00020723,4]
[370503624,1752047459540,-169.661752,0.00020788,2]
[370503625,1752047459549,-1500.0,0.00020815,2]
[370503626,1752047459558,-460.0,0.00020821,2]
[370503627,1752047459568,-460.0,0.00020821,2]
[370503628,1752047459577,-460.0,0.00020821,2]
[370503629,1752047459587,-567.9,0.00020821,2]
[370503630,1752047459597,-154.87005517,0.00020821,2]
[370503631,1752047459606,-482.47017356,0.00020821,2]
[370503632,1752047459616,-460.0,0.00020821,2]
[370503633,1752047459626,-460.0,0.00020821,2]
[370503634,1752047459636,-460.0,0.00020821,2]
[370503635,1752047459645,-527.54231493,0.00020821,2]
[370503636,1752047459655,-460.0,0.00020821,2]
[370503637,1752047459664,-460.0,0.00020821,2]
[370503638,1752047459674,-460.0,0.00020821,2]
[370503639,1752047459683,-460.0,0.00020821,2]
[370503640,1752047459899,-460.0,0.00020821,2]
[370503641,1752047459908,-460.0,0.00020821,2]
[370503642,1752047459922,-460.0,0.00020821,2]
[370503643,1752047459931,-535.60467571,0.00020821,2]
[370503644,1752047459940,-460.0,0.00020821,2]
[370503645,1752047459949,-460.0,0.00020821,2]
[370503646,1752047459959,-460.0,0.00020821,2]
[370503647,1752047459969,-460.0,0.00020821,2]
[370503648,1752047459978,-460.0,0.00020821,2]
[370503649,1752047459987,-460.0,0.00020821,2]
[370503650,1752047459998,-460.0,0.00020821,2]
[370503651,1752047460007,-222.95346022,0.00020821,2]
[370503652,1752047460125,-460.0,0.00020821,2]
[370503653,1752047460135,-460.0,0.00020821,2]
[370503654,1752047460144,-460.0,0.00020821,2]
[370503655,1752047460154,-460.0,0.00020821,2]
[370503656,1752047460164,-460.0,0.00020821,2]
[370503657,1752047460173,-460.0,0.00020821,2]
[370503658,1752047460182,-460.0,0.00020821,2]
[370503659,1752047460191,-460.0,0.00020821,2]
[370503660,1752047460200,-460.0,0.00020821,2]
[370503661,1752047460209,-460.0,0.00020821,2]
[370503662,1752047460218,-460.0,0.00020821,2]
[370503663,1752047460227,-460.0,0.00020821,2]
[370503664,1752047460237,-460.0,0.00020821,2]
[370503665,1752047460246,-550.0,0.00020821,2]
[370503666,1752047460255,-460.0,0.00020821,2]
[370503667,1752047460264,-460.0,0.00020821,2]
[370503668,1752047460273,-583.89,0.00020821,2]
[370503669,1752047460282,-460.0,0.00020821,2]
[370503670,1752047460292,-460.0,0.00020821,2]
[370503671,1752047460301,-460.0,0.00020821,2]
[370503672,1752047460311,-460.0,0.00020821,2]
[370503673,1752047460321,-578.22,0.00020821,2]
[370503674,1752047460330,-460.0,0.00020821,2]
[370503675,1752047460340,-595.52981529,0.00020821,2]
[370503676,1752047460349,-460.0,0.00020821,2]
[370503677,1752047460358,-460.0,0.00020821,2]
[370503678,1752047460368,-460.0,0.00020821,2]
[370503679,1752047460377,-460.0,0.00020821,2]
[370503680,1752047460386,-460.0,0.00020821,2]
[370503681,1752047460395,-460.0,0.00020821,2]
[370503682,1752047460405,-460.0,0.00020821,2]
[370503683,1752047460415,-460.0,0.00020821,2]
[370503684,1752047460424,-460.0,0.00020821,2]
[370503685,1752047460434,-460.0,0.00020821,2]
[370503686,1752047460443,-188.43,0.00020821,2]
[370503687,1752047460453,-460.0,0.00020821,2]
[370503688,1752047460462,-460.0,0.00020821,2]
[370503689,1752047460471,-222.26566888,0.00020821,2]
[370503690,1752047460481,-460.0,0.00020821,2]
[370503691,1752047460490,-546.28,0.00020821,2]
[370503692,1752047460500,-460.0,0.00020821,2]
[370503693,1752047460509,-460.0,0.00020821,2]
[370503694,1752047460519,-460.0,0.00020821,2]
[370503695,1752047460528,-460.0,0.00020821,2]
[370503696,1752047460538,-460.0,0.00020821,2]
[370503697,1752047460547,-460.0,0.00020821,2]
[370503698,1752047460556,-460.0,0.00020821,2]
[370503699,1752047460566,-460.0,0.00020821,2]
[370503700,1752047460575,-460.0,0.00020821,2]
[370503701,1752047460585,-460.0,0.00020821,2]
[370503702,1752047460594,-460.0,0.00020821,2]
[370503703,1752047460604,-460.0,0.00020821,2]
[370503704,1752047460614,-460.0,0.00020821,2]
[370503705,1752047460623,-460.0,0.00020821,2]
[370503706,1752047460633,-460.0,0.00020821,2]
[370503707,1752047460642,-460.0,0.00020821,2]
[370503708,1752047460652,-374.05712751,0.00020821,2]
[370503709,1752047460662,-460.0,0.00020821,2]
[370503710,1752047460671,-671.57,0.00020821,2]
[370503711,1752047460681,-441.27795553,0.00020821,2]
[370503712,1752047460841,-460.0,0.00019178,2]
[370503713,1752047460850,-309.42311904,0.00019452,2]
[370503714,1752047461181,-150.57688096,0.00019452,2]
[370503715,1752047461190,-460.0,0.00019452,2]
[370503716,1752047461201,-460.0,0.00019452,2]
[370503717,1752047461210,-460.0,0.00019726,2]
[370503718,1752047461219,-93.42311584,0.00019726,2]
[370503719,1752047461230,-366.57688416,0.00019726,2]
[370503720,1752047461239,-460.0,0.00019726,2]
[370503721,1752047461249,-460.0,0.0002,2]
[370503722,1752047461258,-460.0,0.0002,2]
[370503723,1752047461267,-460.0,0.0002,2]
[370503724,1752047461276,-460.0,0.0002,2]
[370503725,1752047461285,-460.0,0.00020273,2]
[370503726,1752047461296,-460.0,0.00020273,2]
[370503727,1752047461305,-460.0,0.00020273,2]
[370503728,1752047461314,-460.0,0.00020273,2]
[370503729,1752047461323,-460.0,0.00020547,2]
[370503730,1752047461333,-460.0,0.00020547,2]
[370503731,1752047461342,-460.0,0.00020547,2]
[370503732,1752047461352,-460.0,0.00020547,2]
[370503733,1752047461361,-18.72204447,0.00020821,2]
[370503734,1752047461370,-460.0,0.00020821,2]
[370503735,1752047461379,-460.0,0.00020821,2]
[370503736,1752047461388,-460.0,0.00020821,2]
[370503737,1752047461398,-460.0,0.00020821,2]
[370503738,1752047461407,-460.0,0.00020821,2]
[370503739,1752047461416,-1184.45,0.00020821,2]
[370503740,1752047461426,-460.0,0.00020821,2]
[370503741,1752047461435,-1110.52,0.00020821,2]
[370503742,1752047461445,-466.36,0.00020821,2]
[370503743,1752047461455,-460.0,0.00020821,2]
[370503744,1752047461464,-431.92151567,0.00020821,2]
[370503745,1752047461474,-460.0,0.00020821,2]
[370503746,1752047461483,-592.73,0.00020821,2]
[370503747,1752047461493,-2361.68,0.00020821,2]
[370503748,1752047461502,-590.96,0.00020821,2]
[370503749,1752047461511,-460.0,0.00020821,2]
[370503750,1752047461521,-1665.39,0.00020821,2]
[370503751,1752047461530,-460.0,0.00020821,2]
[370503752,1752047461539,-460.0,0.00020821,2]
[370503753,1752047461549,-460.0,0.00020821,2]
[370503754,1752047461558,-460.0,0.00020821,2]
[370503755,1752047461567,-460.0,0.00020821,2]
[370503756,1752047461577,-460.0,0.00020821,2]
[370503757,1752047461586,-460.0,0.00020821,2]
[370503758,1752047461595,-460.0,0.00020821,2]
[370503759,1752047461605,-460.0,0.00020821,2]
[370503760,1752047461614,-460.0,0.00020821,2]
[370503761,1752047461624,-460.0,0.00020821,2]
[370503762,1752047461633,-460.0,0.00020821,2]
[370503763,1752047461642,-460.0,0.00020821,2]
[370503764,1752047461652,-460.0,0.00020821,2]
[370503765,1752047461662,-3778.38,0.00020821,2]
[370503766,1752047461671,-460.0,0.00020821,2]
[370503767,1752047461681,-460.0,0.00020821,2]
[370503768,1752047461690,-460.0,0.00020821,2]
[370503769,1752047461699,-460.0,0.00020821,2]
[370503770,1752047461709,-460.0,0.00020821,2]
[370503771,1752047461719,-460.0,0.00020821,2]
[370503772,1752047461728,-607.24,0.00020821,2]
[370503773,1752047461737,-460.0,0.00020821,2]
[370503774,1752047461747,-463.76,0.00020821,2]
[370503775,1752047461756,-460.0,0.00020821,2]
[370503776,1752047461765,-460.0,0.00020821,2]
[370503777,1752047461775,-460.0,0.00020821,2]
[370503778,1752047461783,-460.0,0.00020821,2]
[370503779,1752047461793,-460.0,0.00020821,2]
[370503780,1752047461802,-2194.2,0.00020821,2]
[370503781,1752047461811,-460.0,0.00020821,2]
[370503782,1752047461820,-460.0,0.00020821,2]
[370503783,1752047461829,-460.0,0.00020821,2]
[370503784,1752047461838,-460.0,0.00020821,2]
[370503785,1752047461847,-460.0,0.00020821,2]
[370503786,1752047461856,-460.0,0.00020821,2]
[370503787,1752047461865,-1870.43,0.00020821,2]
[370503788,1752047461874,-763.55,0.00020821,2]
[370503789,1752047461883,-460.0,0.00020821,2]
[370503790,1752047461893,-3030.86,0.00020821,2]
[370503791,1752047461901,-460.0,0.00020821,2]
[370503792,1752047461912,-903.13,0.00020821,2]
[370503793,1752047461925,-460.0,0.00020821,2]
[370503794,1752047461934,-460.0,0.00020821,2]
[370503795,1752047461944,-460.0,0.00020821,2]
[370503796,1752047461953,-460.0,0.00020821,2]
[370503797,1752047461962,-460.0,0.00020821,2]
[370503798,1752047461971,-460.0,0.00020821,2]
[370503799,1752047461980,-460.0,0.00020821,2]
[370503800,1752047461989,-460.0,0.00020821,2]
[370503801,1752047461999,-228.46939699,0.00020821,2]
[370503802,1752047462009,-474.66,0.00020821,2]
[370503803,1752047462018,-460.0,0.00020821,2]
[370503804,1752047462027,-460.0,0.00020821,2]
[370503805,1752047462035,-460.0,0.00020821,2]
[370503806,1752047462045,-460.0,0.00020821,2]
[370503807,1752047462054,-460.0,0.00020821,2]
[370503808,1752047462063,-460.0,0.00020821,2]
[370503809,1752047462072,-839.02,0.00020821,2]
[370503810,1752047462081,-460.0,0.00020821,2]
[370503811,1752047462090,-460.0,0.00020821,2]
[370503812,1752047462098,-460.0,0.00020821,2]
[370503813,1752047462108,-460.0,0.00020821,2]
[370503814,1752047462117,-460.0,0.00020821,2]
[370503815,1752047462126,-460.0,0.00020821,2]
[370503816,1752047462134,-460.0,0.00020821,2]
[370503817,1752047462143,-983.0,0.00020821,2]
[370503818,1752047462152,-3461.91,0.00020821,2]
[370503819,1752047462162,-460.0,0.00020821,2]
[370503820,1752047462171,-460.0,0.00020821,2]
[370503821,1752047462180,-460.0,0.00020821,2]
[370503822,1752047462296,-460.0,0.00020821,2]
[370503823,1752047462307,-460.0,0.00020821,2]
[370503824,1752047462316,-460.0,0.00020821,2]
[370503825,1752047462325,-460.0,0.00020821,2]
[370503826,1752047462334,-460.0,0.00020821,2]
[370503827,1752047462344,-1604.09,0.00020821,2]
[370503828,1752047462353,-577.38,0.00020821,2]
[370503829,1752047462362,-460.0,0.00020821,2]
[370503830,1752047462371,-857.72,0.00020821,2]
[370503831,1752047462380,-460.0,0.00020821,2]
[370503832,1752047462390,-460.0,0.00020821,2]
[370503833,1752047462400,-460.0,0.00020821,2]
[370503834,1752047462411,-858.22,0.00020821,2]
[370503835,1752047462420,-460.0,0.00020821,2]
[370503836,1752047462429,-460.0,0.00020821,2]
[370503837,1752047462439,-460.0,0.00020821,2]
[370503838,1752047462448,-460.0,0.00020821,2]
[370503839,1752047462458,-596.31,0.00020821,2]
[370503840,1752047462469,-507.62,0.00020821,2]
[370503841,1752047462480,-475.70427112,0.00020821,2]
[370503842,1752047462489,-460.0,0.00020821,2]
[370503843,1752047462498,-460.0,0.00020821,2]
[370503844,1752047462508,-460.0,0.00020821,2]
[370503845,1752047462518,-460.0,0.00020821,2]
[370503846,1752047462527,-460.0,0.00020821,2]
[370503847,1752047462536,-1290.32617188,0.00020831,4]
[370503848,1752047462546,-927.387,0.00020842,2]
[370503849,1752047462555,-169.661752,0.00020882,2]
[370503850,1752047462565,-169.661752,0.00020976,2]
[370503851,1752047462574,-169.661752,0.0002107,2]
[370503852,1752047462584,-1290.32617188,0.00021072,4]
[370503853,1752047462594,-460.0,0.00021095,2]
[370503854,1752047462603,-460.0,0.00021095,2]
[370503855,1752047462612,-460.0,0.00021095,2]
[370503856,1752047462621,-567.9,0.00021095,2]
[370503857,1752047462631,-460.0,0.00021095,2]
[370503858,1752047462640,-460.0,0.00021095,2]
[370503859,1752047462649,-460.0,0.00021095,2]
[370503860,1752047462658,-460.0,0.00021095,2]
[370503861,1752047462667,-460.0,0.00021095,2]
[370503862,1752047462676,-297.78,0.00021095,2]
[370503863,1752047462685,-460.0,0.00021095,2]
[370503864,1752047462694,-460.0,0.00021095,2]
[370503865,1752047462703,-467.53,0.00021095,2]
[370503866,1752047462713,-460.0,0.00021095,2]
[370503867,1752047462722,-460.0,0.00021095,2]
[370503868,1752047462731,-501.22,0.00021095,2]
[370503869,1752047462740,-460.0,0.00021095,2]
[370503870,1752047462749,-460.0,0.00021095,2]
[370503871,1752047462758,-460.0,0.00021095,2]
[370503872,1752047462767,-460.0,0.00021095,2]
[370503873,1752047462776,-460.0,0.00021095,2]
[370503874,1752047462785,-460.0,0.00021095,2]
[370503875,1752047462794,-460.0,0.00021095,2]
[370503876,1752047462806,-460.0,0.00021095,2]
[370503877,1752047462815,-460.0,0.00021095,2]
[370503878,1752047462825,-460.0,0.00021095,2]
[370503879,1752047462835,-460.0,0.00021095,2]
[370503880,1752047462844,-460.0,0.00021095,2]
[370503881,1752047462853,-460.0,0.00021095,2]
[370503882,1752047462862,-460.0,0.00021095,2]
[370503883,1752047462872,-460.0,0.00021095,2]
[370503884,1752047462882,-583.89,0.00021095,2]
[370503885,1752047462891,-460.0,0.00021095,2]
[370503886,1752047462901,-460.0,0.00021095,2]
[370503887,1752047462913,-460.0,0.00021095,2]
[370503888,1752047462929,-578.22,0.00021095,2]
[370503889,1752047462939,-460.0,0.00021095,2]
[370503890,1752047462948,-460.0,0.00021095,2]
[370503891,1752047462958,-460.0,0.00021095,2]
[370503892,1752047462967,-460.0,0.00021095,2]
[370503893,1752047462977,-460.0,0.00021095,2]
[370503894,1752047462987,-460.0,0.00021095,2]
[370503895,1752047462996,-585.19027895,0.00021095,2]
[370503896,1752047463006,-460.0,0.00021095,2]
[370503897,1752047463016,-460.0,0.00021095,2]
[370503898,1752047463025,-502.38,0.00021095,2]
[370503899,1752047463035,-268.78746289,0.00021095,2]
[370503900,1752047463044,-460.0,0.00021095,2]
[370503901,1752047463053,-546.28,0.00021095,2]
[370503902,1752047463062,-460.0,0.00021095,2]
[370503903,1752047463071,-162.39,0.00021095,2]
[370503904,1752047463081,-467.99936835,0.00021095,2]
[370503905,1752047463090,-460.0,0.00021095,2]
[370503906,1752047463100,-460.0,0.00021095,2]
[370503907,1752047463109,-460.0,0.00021095,2]
[370503908,1752047463118,-460.0,0.00021095,2]
[370503909,1752047463127,-460.0,0.00021095,2]
[370503910,1752047463137,-460.0,0.00021095,2]
[370503911,1752047463146,-460.0,0.00021095,2]
[370503912,1752047463155,-460.0,0.00021095,2]
[370503913,1752047463165,-460.0,0.00021095,2]
[370503914,1752047463175,-460.0,0.00021095,2]
[370503915,1752047463184,-671.57,0.00021095,2]
[370503916,1752047463193,-460.0,0.00021095,2]
[370503917,1752047463202,-460.0,0.00021095,2]
[370503918,1752047463212,-460.0,0.00021095,2]
[370503919,1752047463221,-460.0,0.00021095,2]
[370503920,1752047463231,-460.0,0.00021095,2]
[370503921,1752047463240,-1184.45,0.00021095,2]
[370503922,1752047463249,-552.93,0.00021095,2]
[370503923,1752047463259,-1110.52,0.00021095,2]
[370503924,1752047463268,-466.36,0.00021095,2]
[370503925,1752047463277,-460.0,0.00021095,2]
[370503926,1752047463287,-460.0,0.00021095,2]
[370503927,1752047463297,-592.73,0.00021095,2]
[370503928,1752047463306,-2361.68,0.00021095,2]
[370503929,1752047463316,-590.96,0.00021095,2]
[370503930,1752047463325,-460.0,0.00021095,2]
[370503931,1752047463334,-1665.39,0.00021095,2]
[370503932,1752047463343,-460.0,0.00021095,2]
[370503933,1752047463353,-460.0,0.00021095,2]
[370503934,1752047463363,-460.0,0.00021095,2]
[370503935,1752047463372,-245.33393681,0.00021095,2]
[370503936,1752047463382,-460.0,0.00021095,2]
[370503937,1752047463391,-460.0,0.00021095,2]
[370503938,1752047463401,-460.0,0.00021095,2]
[370503939,1752047463411,-460.0,0.00021095,2]
[370503940,1752047463420,-460.0,0.00021095,2]
[370503941,1752047463429,-460.0,0.00021095,2]
[370503942,1752047463438,-460.0,0.00021095,2]
[370503943,1752047463447,-460.0,0.00021095,2]
[370503944,1752047463457,-460.0,0.00021095,2]
[370503945,1752047463466,-3778.38,0.00021095,2]
[370503946,1752047463475,-460.0,0.00021095,2]
[370503947,1752047463484,-460.0,0.00021095,2]
[370503948,1752047463494,-460.0,0.00021095,2]
[370503949,1752047463503,-460.0,0.00021095,2]
[370503950,1752047463513,-460.0,0.00021095,2]
[370503951,1752047463523,-607.24,0.00021095,2]
[370503952,1752047463532,-460.0,0.00021095,2]
[370503953,1752047463542,-463.76,0.00021095,2]
[370503954,1752047463551,-460.0,0.00021095,2]
[370503955,1752047463561,-460.0,0.00021095,2]
[370503956,1752047463571,-460.0,0.00021095,2]
[370503957,1752047463580,-188.29,0.00021095,2]
[370503958,1752047463590,-2194.2,0.00021095,2]
[370503959,1752047463599,-460.0,0.00021095,2]
[370503960,1752047463608,-460.0,0.00021095,2]
[370503961,1752047463617,-460.0,0.00021095,2]
[370503962,1752047463627,-460.0,0.00021095,2]
[370503963,1752047463636,-460.0,0.00021095,2]
[370503964,1752047463646,-460.0,0.00021095,2]
[370503965,1752047463655,-1870.43,0.00021095,2]
[370503966,1752047463665,-763.55,0.00021095,2]
[370503967,1752047463674,-154.19006302,0.00021095,2]
[370503968,1752047463684,-3030.86,0.00021095,2]
[370503969,1752047463693,-460.0,0.00021095,2]
[370503970,1752047463702,-903.13,0.00021095,2]
[370503971,1752047463712,-460.0,0.00021095,2]
[370503972,1752047463722,-460.0,0.00021095,2]
[370503973,1752047463731,-460.0,0.00021095,2]
[370503974,1752047463740,-460.0,0.00021095,2]
[370503975,1752047463750,-460.0,0.00021095,2]
[370503976,1752047463759,-460.0,0.00021095,2]
[370503977,1752047463768,-460.0,0.00021095,2]
[370503978,1752047463778,-474.66,0.00021095,2]
[370503979,1752047463787,-460.0,0.00021095,2]
[370503980,1752047463797,-460.0,0.00021095,2]
[370503981,1752047463806,-460.0,0.00021095,2]
[370503982,1752047463816,-460.0,0.00021095,2]
[370503983,1752047463825,-460.0,0.00021095,2]
[370503984,1752047463834,-378.58809761,0.00021095,2]
[370503985,1752047463843,-839.02,0.00021095,2]
[370503986,1752047463853,-460.0,0.00021095,2]
[370503987,1752047463862,-460.0,0.00021095,2]
[370503988,1752047463871,-465.10927877,0.00021095,2]
[370503989,1752047463881,-460.0,0.00021095,2]
[370503990,1752047463891,-460.0,0.00021095,2]
[370503991,1752047463900,-352.26249679,0.00021095,2]
[370503992,1752047463910,-983.0,0.00021095,2]
[370503993,1752047463921,-3461.91,0.00021095,2]
[370503994,1752047463931,-460.0,0.00021095,2]
[370503995,1752047463940,-460.0,0.00021095,2]
[370503996,1752047463950,-460.0,0.00021095,2]
[370503997,1752047463959,-460.0,0.00021095,2]
[370503998,1752047463970,-460.0,0.00021095,2]
[370503999,1752047463979,-462.4260847,0.00021095,2]
[370504000,1752047523131,-322.60785128,0.00018773,2]
[370504001,1752047634667,-180.93386454,0.00018513,2]
[370504004,1752047645939,-308.323625,0.00018513,2]
[370504005,1752047760451,-170.60785128,0.00018326,2]
[370504006,1752047818259,5000.0,0.00018151,2]
[370504007,1752047834549,353.80277533,0.00018151,2]
[370504008,1752048005770,-98.77810345,0.00018326,2]
[370504009,1752048005800,-53.22189655,0.00018326,2]
[370504010,1752048017220,-180.93386454,0.00018326,2]
[370504011,1752048025706,180.93386454,0.00018151,2]
[370504012,1752048032006,200.0,0.00025016,120]
[370504013,1752048032033,-265.84423891,0.00018326,2]
[370504014,1752048032054,-42.47938609,0.00018326,2]
[370504015,1752048043426,308.323625,0.00018151,2]
[370504016,1752048091127,200.0,0.00026315,120]
[370504017,1752048115335,207.3308005,0.0001777,2]
[370504018,1752048151112,200.0,0.00025245,120]
[370504019,1752048312256,24900.0,0.00017769,2]
[370504024,1752048505517,290.354696,0.00013699,2]
[370504025,1752048517827,3996.54927149,0.00018151,2]
[370504044,1752048632577,-1200.0,0.00018325,2]
[370504046,1752048632587,-300.0,0.00018325,2]
[370504048,1752048632597,-661.04255946,0.00018325,2]
[370504050,1752048632608,-538.95744054,0.00018325,2]
[370504052,1752048632617,-126.40375426,0.00018325,2]
[370504054,1752048632629,-173.59624574,0.00018325,2]
[370504056,1752048632639,-300.0,0.00018325,2]
[370504058,1752048632649,-457.52061391,0.00018326,2]
[370504059,1752048632659,-500.0,0.00018326,2]
[370504060,1752048632669,-500.0,0.00018326,2]
[370504061,1752048632679,-500.0,0.00018326,2]
[370504062,1752048632688,-500.0,0.00018326,2]
[370504063,1752048632698,-400.56508913,0.00018326,2]
[370504064,1752048632707,-179.12547053,0.00018671,2]
[370504065,1752048632716,-862.15445716,0.00018671,2]
[370504066,1752048632725,-151.37042342,0.00018761,2]
[370504067,1752048632734,-409.95,0.00018763,3]
[370504068,1752048632744,-341.63,0.00018763,3]
[370504069,1752048632753,-170.81,0.00018763,3]
[370504070,1752048632763,-512.47,0.00018763,3]
[370504071,1752048632772,-501.7171862,0.0001877,2]
[370504072,1752048632782,-500.0,0.0001877,2]
[370504073,1752048632791,-500.0,0.0001877,2]
[370504074,1752048632801,-414.25524667,0.0001877,2]
[370504075,1752048632810,-500.0,0.0001877,2]
[370504076,1752048632819,-500.0,0.0001877,2]
[370504077,1752048632829,-152.98989225,0.0001877,2]
[370504078,1752048632967,-347.01010775,0.0001877,2]
[370504079,1752048632977,-500.0,0.0001877,2]
[370504080,1752048632986,-500.0,0.0001877,2]
[370504081,1752048632995,-500.0,0.0001877,2]
[370504082,1752048633004,-500.0,0.0001877,2]
[370504083,1752048633012,-500.0,0.0001877,2]
[370504084,1752048633022,-500.0,0.0001877,2]
[370504085,1752048633032,-500.0,0.0001877,2]
[370504086,1752048633041,-500.0,0.0001877,2]
[370504087,1752048633051,-500.0,0.0001877,2]
[370504088,1752048633061,-263.18665234,0.0001877,2]
[370504089,1752048633071,-500.0,0.0001877,2]
[370504090,1752048633080,-500.0,0.0001877,2]
[370504091,1752048633091,-500.0,0.0001877,2]
[370504092,1752048633101,-500.0,0.0001877,2]
[370504093,1752048633110,-280.53411495,0.0001877,2]
[370504094,1752048633120,-500.0,0.0001877,2]
[370504095,1752048633130,-500.0,0.0001877,2]
[370504096,1752048633141,-502.39089078,0.0001877,2]
[370504097,1752048633150,-500.0,0.0001877,2]
[370504098,1752048633161,-500.0,0.0001877,2]
[370504099,1752048633171,-500.0,0.0001877,2]
[370504100,1752048633180,-500.0,0.0001877,2]
[370504101,1752048633189,-559.7536265,0.0001877,2]
[370504102,1752048633198,-500.0,0.0001877,2]
[370504103,1752048633208,-500.0,0.0001877,2]
[370504104,1752048633217,-500.0,0.0001877,2]
[370504105,1752048633226,-500.0,0.0001877,2]
[370504106,1752048633236,-646.3765789,0.0001877,2]
[370504107,1752048633246,-500.0,0.0001877,2]
[370504108,1752048633256,-551.94344691,0.0001877,2]
[370504109,1752048633265,-567.84979402,0.0001877,2]
[370504110,1752048633274,-500.0,0.0001877,2]
[370504111,1752048633283,-500.0,0.0001877,2]
[370504112,1752048633292,-500.0,0.0001877,2]
[370504113,1752048633301,-500.0,0.0001877,2]
[370504114,1752048633310,-500.0,0.0001877,2]
[370504115,1752048633319,-500.0,0.0001877,2]
[370504116,1752048633328,-500.0,0.0001877,2]
[370504117,1752048633338,-286.25547322,0.0001877,2]
[370504118,1752048633347,-500.0,0.0001877,2]
[370504119,1752048633357,-500.0,0.0001877,2]
[370504120,1752048633366,-500.0,0.0001877,2]
[370504121,1752048633376,-189.24454882,0.00018772,2]
[370504122,1752048633385,-500.0,0.00018772,2]
[370504123,1752048633396,-500.0,0.00018772,2]
[370504124,1752048633408,-500.0,0.00018772,2]
[370504125,1752048633418,-157.68806641,0.00018772,2]
[370504126,1752048633428,-500.0,0.00018772,2]
[370504127,1752048633439,-76654.57647108,0.00018773,2]
[370504128,1752048633451,-562.6195265,0.00018773,2]
[370504129,1752048633462,-286.4131265,0.00018773,2]
[370504147,1752048638489,-500.0,0.0001877,2]
[370504148,1752048638500,-500.0,0.0001877,2]
[370504149,1752048638509,-500.0,0.0001877,2]
[370504150,1752048638519,-500.0,0.0001877,2]
[370504151,1752048638529,-500.0,0.0001877,2]
[370504152,1752048638539,-500.0,0.0001877,2]
[370504153,1752048638549,-46.74745078,0.0001877,2]
[370504154,1752048638574,-453.25254922,0.0001877,2]
[370504155,1752048638583,-500.0,0.0001877,2]
[370504156,1752048638593,-500.0,0.0001877,2]
[370504157,1752048638603,-500.0,0.0001877,2]
[370504158,1752048638612,-112.86282512,0.0001877,2]
[370504159,1752048638625,-387.13717488,0.0001877,2]
[370504160,1752048638634,-500.0,0.0001877,2]
[370504161,1752048638645,-500.0,0.0001877,2]
[370504162,1752048638655,-500.0,0.0001877,2]
[370504163,1752048638665,-500.0,0.0001877,2]
[370504164,1752048638675,-500.0,0.0001877,2]
[370504165,1752048638685,-500.0,0.0001877,2]
[370504166,1752048638695,-500.0,0.0001877,2]
[370504167,1752048638705,-500.0,0.0001877,2]